Cogmind - Beta 13 @@@ ROGUE MODE // 2024.05.14 @ 10:11:21 Player: ThatBishHoly Result: Destroyed by G-47 Trooper with Particle Gun Performance ------------- Evolutions (2) 1000 Regions Visited (3) 600 Robots Destroyed (40) 200 Value Destroyed (1202) 1202 Prototype IDs (2) 40 Alien Tech Used (0) 0 Bonus (31) 31 TOTAL SCORE: 3073 Bonus ------- High Alert Combat Kills 31 Cogmind --------- Core Integrity 0/550 Matter 88/300 Energy 100/100 System Corruption 0% Temperature Hot (270) Movement Core (350) Ox6 Location -8/Materials Parts ------- > --- POWER (2) -------- (None) > --- PROPULSION (4) --- (None) > --- UTILITY (3) ------ Heat Sink Large Storage Unit > --- WEAPON (2) ------- (None) > --- INVENTORY (15) --- Advanced Weight Redist. System Subdweller Optics Advanced Targeting Computer Reflective Plating Reflective Plating Hacking Suite Improved Medium Laser Heavy Particle Cannon Ion Cannon Peak State ------------ > --- POWER ------------ Deuterium Engine Light Nuclear Core > --- PROPULSION ------- Light Treads Light Treads Wheel Subdweller Monowheel > --- UTILITY ---------- Large Storage Unit Improved Utility Shielding Hardened Medium Armor Plating > --- WEAPON ----------- Heavy Particle Cannon Subdweller Shrapnel Launcher > --- INVENTORY -------- Heat Sink Advanced Weight Redist. System Subdweller Optics Advanced Targeting Computer Reflective Plating Reflective Plating Hacking Suite Improved Medium Laser Heavy Particle Cannon Heavy Particle Cannon Ion Cannon Improved Assault Rifle Great Maul [Rating: 26] Favorites ----------- Power Ion Engine Engine Ion Engine Power Core Light Nuclear Core Propulsion Subdweller Monowheel Treads Light Treads Wheel Subdweller Monowheel Utility Scrap Shield Device Reaction Control System Storage Large Storage Unit Protection Scrap Shield Weapon EM Pulse Gun Energy Gun EM Pulse Gun Energy Cannon Heavy Particle Cannon Ballistic Gun Barrage Gun Ballistic Cannon Battle Cannon Launcher Grenade Launcher Impact Weapon Great Maul Build | -11 -10 -10 -8 ------- Run | Yrd Mat Sub Mat Slots Evolved 4 | . . . 4 Power 1 | . . . 1 Propulsion 2 | . . . 2 Utility 1 | . . . 1 Weapon . | . . . . Parts Attached 33 | 4 1 7 21 Power 5 | 1 . . 4 Engine 4 | 1 . . 3 Core 1 | . . . 1 Reactor . | . . . . Propulsion 8 | 2 . 3 3 Treads 2 | . . . 2 Leg . | . . . . Wheel 6 | 2 . 3 1 Hover . | . . . . Flight . | . . . . Utility 8 | . . 2 6 Device 2 | . . . 2 Storage 1 | . . . 1 Processor . | . . . . Hackware . | . . . . Protection 5 | . . 2 3 Artifact . | . . . . Weapon 12 | 1 1 2 8 Energy Gun 2 | 1 . . 1 Energy Cannon 3 | . . . 3 Ballistic Gun 2 | . . 1 1 Ballistic Cannon 1 | . . 1 . Launcher 3 | . 1 . 2 Special Weapon . | . . . . Impact Weapon 1 | . . . 1 Slashing Weapon . | . . . . Piercing Weapon . | . . . . Special Melee Weapon . | . . . . Unidentified Prototypes 2 | . . . 2 Parts Lost 20 | . 1 3 16 Power 3 | . . . 3 Propulsion 5 | . 1 1 3 Utility 3 | . . . 3 Weapon 9 | . . 2 7 Highest Loss Streak 10 | . 1 2 10 To Critical Strikes . | . . . . Average Slot Usage (%) 66 | . 59 64 75 Engine 13 | . 14 14 12 Core 1 | . . . 4 Treads 1 | . . . 3 Wheel 13 | . 18 10 13 Storage 2 | . . . 7 Protection 10 | . . 13 14 Energy Gun 7 | . 14 9 . Energy Cannon 1 | . . . 5 Ballistic Gun 5 | . . 8 2 Ballistic Cannon 2 | . . 3 3 Launcher 6 | . 11 4 5 Naked Turns . | . . . . Heaviest Build 58 | 7 10 29 58 Greatest Support 40 | 26 26 40 40 Greatest Overweight (x) 13 | . . 9 13 Average Overweight (x) 1 | . . 2 1 Largest Inventory Capacity 15 | 5 5 5 15 Average Capacity 7 | 5 5 5 13 Most Carried 15 | 3 1 5 15 Average Carried 4 | . . 3 8 Final Capacity 15 | 5 5 5 15 Final Carried 9 | . 1 5 9 Class Distribution -------------------- 86% | Mutant 13% | Subdweller-Mutant Dominant Class ---------------- Mutant | -10/Materials Mutant | -10/Subcaves Mutant | -8/Materials Resources | -11 -10 -10 -8 ----------- Run | Yrd Mat Sub Mat Matter Collected 935 | 173 100 303 359 Remotely . | . . . . Salvage Created 1111 | . 190 189 732 Parts 83 | . 16 18 49 Haulers Intercepted 1 | . 1 . . Recyclers Shooed . | . . . . Parts Field Recycled . | . . . . Retrieved Matter . | . . . . Parts Self-Destructed 7 | . . 7 . Prevented . | . . . . Kills | -11 -10 -10 -8 ------- Run | Yrd Mat Sub Mat Combat Hostiles Destroyed 28 | . 5 5 18 Guns 7 | . 1 3 3 Cannons 6 | . . 2 4 AOE 14 | . 4 . 10 Classes Destroyed 11 | . 4 1 6 Worker 4 | . . . 4 Tunneler 2 | . 1 . 1 Hauler 1 | . 1 . . Recycler 1 | . . . 1 Operator 3 | . 2 . 1 Watcher 1 | . . . 1 Swarmer 3 | . . . 3 Grunt 13 | . 5 . 8 Brawler 2 | . . . 2 Sentry 5 | . . . 5 Subdweller 5 | . . 5 . Best Kill Streak 17 | . 4 2 17 Combat Bots Only 11 | . 3 2 11 Max Kills in Single Turn 4 | . 2 1 4 Gunslinging . | . . . . Exploded 3 | . 1 . 3 Melee . | . . . . Uniques/NPCs Destroyed . | . . . . Combat | -11 -10 -10 -8 -------- Run | Yrd Mat Sub Mat Hostile Shots Fired 240 | . 13 36 191 Missed 61 | . 3 13 45 Damage Taken 3256 | . 243 532 2481 Core 683 | . 73 47 563 Absorbed by Shields . | . . . . Redirected to Shielding 107 | . . . 107 Core Remaining (%) 76 | 100 . 52 . Volleys Fired 84 | . 17 23 44 Largest 2 | . 2 2 2 Hottest 150 | . 70 70 150 Shots Fired 141 | . 34 32 75 Gun 55 | . 17 23 15 Cannon 54 | . . 8 46 Launcher 32 | . 17 1 14 Special . | . . . . Kinetic 68 | . . 22 46 Thermal 18 | . . . 18 Explosive 29 | . 17 1 11 Electromagnetic 26 | . 17 9 . Robot Hit Streak 11 | . 9 11 10 Robot Miss Streak 3 | . 3 1 3 Penetration Max . | . . . . Secondary Targets . | . . . . Shots Hit Robots 89 | . 13 27 49 Core Hits 62 | . 12 8 42 Critical Kills . | . . . . Critical Parts Destroyed . | . . . . Critical Strikes . | . . . . Melee Attacks 2 | . . . 2 Impact 2 | . . . 2 Slashing . | . . . . Piercing . | . . . . Sneak Attacks . | . . . . Combat Hostiles . | . . . . Follow-up Attacks . | . . . . Damage Inflicted 3154 | . 630 513 2011 Guns 585 | . 77 300 208 Cannons 782 | . . 132 650 Explosions 1674 | . 553 81 1040 Melee 105 | . . . 105 Ramming 8 | . . . 8 Kinetic 1052 | . . 347 705 Thermal 350 | . . . 350 Explosive 1445 | . 521 81 843 Electromagnetic 194 | . 109 85 . Impact 105 | . . . 105 Slashing . | . . . . Piercing . | . . . . Highest Corruption . | . . . . Average Corruption . | . . . . Corruption Purged . | . . . . Corruption Blocked . | . . . . Overload Shots . | . . . . Overflow Damage 57 | . 34 . 23 Projectiles . | . . . . Explosions 52 | . 34 . 18 Melee 5 | . . . 5 Knockbacks 5 | . . 2 3 Impact 1 | . . . 1 Kinetic 3 | . . 2 1 Secondary 1 | . . . 1 Self-Inflicted Damage 251 | . 141 19 91 Shots 12 | . 9 1 2 Rammed 2 | . . . 2 Targets Rammed 2 | . . . 2 Kicked . | . . . . Crushed . | . . . . Highest Temperature 937 | . 72 . 937 Average Temperature 155 | . 23 . 187 Received Heat Transfer 1386 | . 60 48 1278 Effects 26 | . . . 26 Shutdowns 3 | . . . 3 Energy Bleed 5 | . . . 5 Interference 6 | . . . 6 Matter Decay 2 | . . . 2 Short Circuit 1 | . . . 1 Damage (major) 7 | . . . 7 Damage (core) 2 | . . . 2 Siege Activations . | . . . . Robots Corrupted . | . . . . Combat Hostiles . | . . . . Parts Fried . | . . . . Impact Corruptions 1 | . . . 1 Robots Melted . | . . . . Combat Hostiles . | . . . . Parts Melted 1 | . . . 1 Heat Transferred 518 | . . . 518 Parts Sabotaged . | . . . . Parts Stolen . | . . . . Parts Stripped . | . . . . Power Chain Reactions . | . . . . Alert | -11 -10 -10 -8 ------- Run | Yrd Mat Sub Mat Peak Influence 444 | . 218 . 444 Initial . | . . . . Average 182 | . 89 . 248 Maximum Alert Level 2 | . 1 . 2 Low Security (%) 52 | 100 76 . 35 Level 1 37 | . 23 . 47 Level 2 10 | . . . 17 Level 3 . | . . . . Level 4 . | . . . . Level 5 . | . . . . High Security . | . . . . Max Security . | . . . . Squads Dispatched 5 | . 5 . . Investigation 2 | . 2 . . Extermination . | . . . . Reinforcement 3 | . 3 . . Assault . | . . . . Garrison . | . . . . Intercept . | . . . . Searches Triggered . | . . . . Construction Impeded . | . . . . Haulers Reinforced . | . . . . Active Scanning Responses . | . . . . Cargo Convoy Interrupts . | . . . . Stealth | -11 -10 -10 -8 --------- Run | Yrd Mat Sub Mat Distress Signals 2 | . . . 2 Communications Jammed . | . . . . Distress Signals . | . . . . Times Spotted 39 | . 6 6 27 Peak Tracking Total 7 | . 2 2 7 Tactical Retreats 2 | . 1 1 . Traps | -11 -10 -10 -8 ------- Run | Yrd Mat Sub Mat Traps Triggered 2 | . 2 . . Indirectly . | . . . . Trap Hack Attempts . | . . . . Triggered . | . . . . Disarmed . | . . . . Reprogrammed . | . . . . Reused . | . . . . Traps Extracted . | . . . . Installed . | . . . . Triggered . | . . . . Most Traps Carried 1 | . . 1 . Machines | -11 -10 -10 -8 ---------- Run | Yrd Mat Sub Mat Machines Disabled 3 | . 1 . 2 Max in Single Turn 1 | . 1 . 1 Machines Repaired . | . . . . Machines Dismantled . | . . . . Machines Sabotaged . | . . . . Overloaded Fab Kills . | . . . . Hacking | -11 -10 -10 -8 --------- Run | Yrd Mat Sub Mat Machines Accessed 3 | . 2 . 1 Terminals 3 | . 2 . 1 Fabricators . | . . . . Repair Stations . | . . . . Recycling Units . | . . . . Scanalyzers . | . . . . Garrison Access . | . . . . Total Hacks 4 | . 3 . 1 Successful 3 | . 2 . 1 Failed 1 | . 1 . . Catastrophic . | . . . . Database Lockouts . | . . . . Manual . | . . . . Terminals 4 | . 3 . 1 Fabricators . | . . . . Repair Stations . | . . . . Recycling Units . | . . . . Scanalyzers . | . . . . Garrison Access . | . . . . Terminal Hacks 3 | . 2 . 1 Alert Level 1 | . 1 . . Zone Layout 2 | . 1 . 1 Fabricator Hacks . | . . . . Repair Station Hacks . | . . . . Recycling Unit Hacks . | . . . . Scanalyzer . | . . . . Garrison Access Hacks . | . . . . Unauthorized Hacks . | . . . . Terminals . | . . . . Fabricators . | . . . . Repair Stations . | . . . . Recycling Units . | . . . . Scanalyzers . | . . . . Garrison Access . | . . . . Data Cores Recovered 2 | . 1 . 1 Used . | . . . . Hacking Detections 2 | . 1 . 1 Full Trace Events . | . . . . Feedback Events . | . . . . Feedback Blocked . | . . . . Robot Schematics Acquired . | . . . . Robots Built . | . . . . Authchips . | . . . . Time . | . . . . Total Robot Build Rating . | . . . . Part Schematics Acquired . | . . . . Parts Built . | . . . . Authchips . | . . . . Time . | . . . . Total Part Build Rating . | . . . . Parts Repaired . | . . . . Time . | . . . . Parts Recycled . | . . . . Recycled Matter . | . . . . Retrieved Matter . | . . . . Retrieved Components . | . . . . Parts Scanalyzed . | . . . . Part Schematics Acquired . | . . . . Parts Damaged . | . . . . Bothacking | -11 -10 -10 -8 ------------ Run | Yrd Mat Sub Mat Used RIF Installer . | . . . . Robots Hacked . | . . . . Non-combat . | . . . . Combat . | . . . . Robot Hacks Applied . | . . . . Relay Couplers Released . | . . . . Fabnet Peak Effective % . | . . . . Robots Rewired . | . . . . Allies Hacked . | . . . . Hacks Repelled . | . . . . Allies | -11 -10 -10 -8 -------- Run | Yrd Mat Sub Mat Total Allies . | . . . . Largest Group . | . . . . Highest-Rated Group . | . . . . Highest-Rated Ally . | . . . . Total Orders . | . . . . Ally Attacks . | . . . . Total Damage . | . . . . Kills . | . . . . Allies Corrupted . | . . . . Allies Melted . | . . . . Intel | -11 -10 -10 -8 ------- Run | Yrd Mat Sub Mat Robot Analysis Total . | . . . . Derelict Logs Recovered 2 | . . 2 . Drone Launches . | . . . . Drone Recoveries . | . . . . Exploration | -11 -10 -10 -8 ------------- Run | Yrd Mat Sub Mat Turns Passed 2555 | 34 483 1265 773 Spaces Moved 1440 | 32 388 581 439 Core 112 | 6 . 103 3 Treads 41 | . . . 41 Legs . | . . . . Wheels 1287 | 26 388 478 395 Hover . | . . . . Flight . | . . . . Fastest Speed 50 | 50 80 80 107 Average Speed 136 | 82 83 175 134 Slowest Speed 700 | 90 90 500 700 Overloaded Moves . | . . . . Propulsion Burnouts . | . . . . Robots Hopped . | . . . . Cave-ins Triggered . | . . . . Exploration Rate (%) 27 | 4 34 24 48 Regions Visited 3 Branch Regions 1 Pre-discovered Areas . | . . . . Known Exits Taken . | . . . . Unknown Exits Taken 3 | 1 1 1 . Scrap Searched . | . . . . Spaces Dug 49 | . 49 . . Terrain Destroyed 205 | . 99 10 96 Melee . | . . . . Projectile 7 | . . . 7 AOE 198 | . 99 10 89 Terrain Rammed . | . . . . Walls Destroyed . | . . . . Machines Disabled . | . . . . Actions | -11 -10 -10 -8 --------- Run | Yrd Mat Sub Mat Total 1889 | 39 512 797 541 Wait 277 | . 105 172 . Move 1437 | 31 387 580 439 Hop . | . . . . Pick Up 39 | 4 2 9 24 Fast Attach 6 | . . 5 1 Attach 21 | 4 1 1 15 Detach . | . . . . Swap 6 | . . 1 5 Drop 15 | . . 6 9 Fire 84 | . 17 23 44 Melee 2 | . . . 2 Ram . | . . . . Kick . | . . . . Crush 2 | . . . 2 Escape Stasis . | . . . . Rewire . | . . . . Trap . | . . . . Miscellaneous . | . . . . Route ------- -11/Scrapyard -10/Materials -10/Subcaves -8/Materials History --------- Turn | Location | Event 11 | -11/Scrapyard | Discovered new exit (range 16) 35 | -11/Scrapyard | Entered Materials 318 | -10/Materials | Build established: Mutant 513 | -10/Materials | Discovered new exit (range 5) 518 | -10/Materials | Entered Subcaves 895 | -10/Subcaves | Learned Materials garrison access intel 1698 | -10/Subcaves | Discovered new exit (range 15) 1783 | -10/Subcaves | Entered Materials 1783 | -8/Materials | Evolved 4 slots: Power x1, Propulsion x2, Utility x1 1784 | -8/Materials | Loaded intel: 1 garrison access location 1863 | -8/Materials | Build established: Subdweller-Mutant 2094 | -8/Materials | Lost 3 parts (1p1u1w) 2104 | -8/Materials | Destroyed 11 combat bots 2132 | -8/Materials | Lost 3 parts (1n2w) 2190 | -8/Materials | Build established: Mutant 2532 | -8/Materials | Core integrity fell below 50% 2546 | -8/Materials | Core integrity fell below 20% 2556 | -8/Materials | Destroyed by G-47 Trooper with Particle Gun Last Messages --------------- 02549_ Overheating: Imp. Utility Shielding damaged (-2). 02549_ Overheating: Heat Sink damaged (-15). 02549_ Overheating: Great Maul damaged (-57). 02549_ U-05 Engineer builds a Wall. 02550_ Overheating: Great Maul damaged (-23). 02550_ Overheating: Heat Sink damaged (-5). 02550_ Overheating: Imp. Utility Shielding damaged (-2). 02550_ Overheating: Lrg. Storage Unit damaged (-94). 02550_ Imp. Utility Shielding destroyed. 02551_ Overheating: System interference. 02551_ Heat Sink temporarily disabled. 02551_ K-01 Serf collects debris. 02553_ U-05 Engineer lays Concrete. 02554_ Great Maul destroyed. 02554_ U-05 Engineer lays Concrete. 02555_ K-01 Serf collects debris. 02555_ U-05 Engineer builds a Wall. Map ----- +----------------------------------------------------+ | ?????????????????????????????????????????????????? | | ?????????????????????????????????????????????????? | | ?????????????????????????????????????????????????? | | ?????????????????????????????????????????????????? | | ?????????????????????????????????????????????????? | | ?????????????????????????????????????????????????? | | ?????????????????????????????????????????????????? | | ?????????????????????????????????????????????????? | | ?????????????????????????????????????????????????? | | ?????????????????????????????????????????????????? | | ?????????????????????????????????????????????????? | | ?????????????????????????????????????????????????? | | ?????????????????????????????????????????????????? | | ?????????????????????????????????????????????????? | | ?????????????????????????????????????????????????? | | ?????????????????????????????????????????????????? | | ??????????# ????????????????????????????????????? | | ??????????# "????????????????????????????????????? | | ??????????# ""???????????????????????????????????? | | ??????????# ""???????????????????????????????????? | | ??????????? ??????????????????????????????????? | | ???????????? ??????????????????????????????????? | | ????????????? ?????????????????????????????????? | | ????????#######+#############????????????????????? | | ????????# [ #????????????????????? | | ????????# kg=@= #????????????????????? | | ???????## g g #????????????????????? | | ???????#" ##;##;##/##????????????????????? | | ???????#T ! "#!TY ##= ????????????????????? | | ???????# !! = "" ## ??????????????????? | | ### ! * ;* ## ][ +????????????????? | | ? T %! ; ## [! # ??????????????? | | ### ! u ;] ## #? ????????????? | | # ????# ""+##;###### #???##???????????? | | #???????######" #???########????????????????? | | ?????????????## #???????????????????????????? | | ##???????????#" #???????????????????????????? | | |#???????????## """ ######??????????????????????? | | #????????????# """ + +??????????????????????? | | #????????????# """ #### #????????????????????"?? | | #????????######+###+#????????????????????????"G"? | | #??####### # #?# #????????????????????????"?"? | | #?## # # #?# #???????????????????????????? | | #?# """ # # ### #### ##?????????????????????? | | ####""% ""# !# #?????????????????????? | | ?# ! # + #?????????????????????? | | ?# !! " #### T ????????????????? | | ?# !!! ["= #??###### ???????????????? | | ?# ! ! " #???????? ??????????????? | | ?# # #????????? [ """???????????????? | +----------------------------------------------------+ Best States ------------- Heat Dissipation 41 Energy Generation 24 Energy Capacity 350 Matter Stores 300 Matter Capacity 300 Sight Range 16 Terrain Scan Density 10 Armor Coverage 950 Utility Shielding 66 Evasion (%) 44 Recoil Reduction 2 Item Schematics ----------------- None Robot Schematics ------------------ None Fabricated ------------ Nothing Alien Tech Used ----------------- None Achievements -------------- None Challenges ------------ None Game ------ Seed AluminumLightInverter Manual? 0 Play Time 00:27:11 Cumulative 21.2 hours Start 2024.05.13 @ 22:47:52 End 2024.05.14 @ 10:11:21 Sessions 3 Manual Loads 0 Difficulty Rogue Special Mode None Game No. 64 Rogue 64 Adventurer 0 Explorer 0 Win Type - Total 0 Types 0/0/0/0/0/0/0/0/0 Lore% 13 Gallery% 30 Achievement% 22 Wizard Run 0 Options --------- Layout 1 ASCII 0 Keyboard 0 Movement Arrows Keybinds 0 Fullscreen 1 Font 16/SmallcapsGlow Map View 25x20 Zoom Use 98% Tactical HUD 1 Map Filters NONE Filters NONE Steam SD RUN: 136ed994-b11a-47cd-b259-2595485e3a63